bitfinex/quotes_SOLUSD_20240628
["timestamp","ask_amount","ask_price","bid_price","bid_amount"]
[1719598571907,15.0376,142.12,142.09,7.0377]
[1719598572115,15.0376,142.12,142.07,24.6348]
[1719598572521,15.0376,142.12,142.07,17.5966]
[1719598572717,15.0376,142.12,142.07,24.6353]
[1719598572914,15.0376,142.12,142.08,7.0381]
[1719598573113,15.0376,142.12,142.09,7.0376]
[1719598573320,1.22482056,142.2,142.09,8.44479893]
[1719598573625,15.8385,142.16,142.1,7.0372]
[1719598573823,20.0,142.15,142.11,8.4436582]
[1719598574011,15.8385,142.16,142.11,1.4069582]
[1719598576038,15.8385,142.16,142.06,17.5976]
[1719598576226,15.8385,142.16,142.06,23.18650189]
[1719598576533,15.8385,142.16,142.07,7.0386]
[1719598577033,15.8385,142.16,142.06,30.22570189]
[1719598577528,20.0,142.15,142.06,17.5976]
[1719598578431,20.0,142.15,142.06,24.6367]
[1719598578622,20.0,142.15,142.06,17.5976]
[1719598579331,20.0,142.15,142.08,7.0381]
[1719598579832,20.0,142.15,142.07,7.0387]
[1719598580930,15.8385,142.16,142.08,120.0]
[1719598581147,16.3109,142.19,142.14,17.5881]
[1719598581514,16.3109,142.19,142.14,24.6233]
[1719598581819,16.3109,142.19,142.11,17.591]
[1719598582016,16.3109,142.19,142.11,24.6274]
[1719598582216,16.3109,142.19,142.13,7.0354]
[1719598582532,16.3109,142.19,142.13,17.5887]
[1719598583317,16.3109,142.19,142.13,24.624]
[1719598583724,16.3109,142.19,142.14,7.0352]
[1719598584021,16.3109,142.19,142.15,7.52437906]
[1719598584536,16.3109,142.19,142.16,0.71902888]
[1719598585810,16.3109,142.19,142.14,7.0351]
[1719598586440,16.3109,142.19,142.15,7.0345]
[1719598588326,16.3109,142.19,142.16,1.40652858]
[1719598588539,16.3109,142.19,142.13,17.5887]
[1719598588944,16.3109,142.19,142.14,7.0351]
[1719598589322,16.3109,142.19,142.15,7.0347]
[1719598590121,16.3109,142.19,142.14,7.0351]
[1719598590327,16.3109,142.19,142.13,17.5887]
[1719598591038,16.3109,142.19,142.15,7.0347]
[1719598591345,16.3109,142.19,142.14,7.0352]
[1719598591557,16.3109,142.19,142.13,17.5887]
[1719598591723,16.3109,142.19,142.11,12.58422467]
[1719598592038,16.3109,142.19,142.12,7.0359]
[1719598592241,16.3109,142.19,142.11,7.0366]
[1719598592447,16.3109,142.19,142.1,57.9593]
[1719598593027,16.3109,142.19,142.11,7.0368]
[1719598593247,16.3109,142.19,142.12,7.0362]
[1719598593427,16.3109,142.19,142.14,7.035]
[1719598593844,16.3109,142.19,142.13,7.0356]
[1719598594347,16.3109,142.19,142.12,17.5902]
[1719598594643,16.3109,142.19,142.09,17.5936]
[1719598594851,20.0,142.18,142.09,24.631]
[1719598595021,20.0,142.18,142.09,17.5936]
[1719598595223,20.0,142.18,142.1,8.05290622]
[1719598595454,20.0,142.18,142.09,30.23755209]
[1719598596252,15.4057,142.17,142.08,7.038]
[1719598596454,26.1316,142.16,142.07,7.0387]
[1719598597047,26.1316,142.16,142.06,5.60809807]
[1719598597247,26.1316,142.16,142.11,7.0367]
[1719598598231,26.1316,142.16,142.13,7.0353]
[1719598598429,6.1316,142.16,142.12,7.0361]
[1719598598691,6.1316,142.16,142.11,7.0366]
[1719598600325,6.1316,142.16,142.07,168.5217]
[1719598600652,6.1316,142.16,142.08,7.0381]
[1719598600828,6.1316,142.16,142.07,17.5966]
[1719598601152,6.1316,142.16,142.08,7.0379]
[1719598601450,6.1316,142.16,142.07,24.635]
[1719598601749,6.1316,142.16,142.08,8.44492095]
[1719598601952,6.1316,142.16,142.08,1.40702095]
[1719598602156,6.1316,142.16,142.09,7.0376]
[1719598602351,6.1316,142.16,142.1,1.40682291]
[1719598602556,6.1316,142.16,142.11,1.40672391]
[1719598603257,6.1316,142.16,142.06,14.0958]
[1719598603465,20.0,142.15,142.07,7.0387]
[1719598604753,6.4802,142.13,142.04,15.4057]
[1719598604934,20.0,142.12,142.03,24.6416]
[1719598605432,20.0,142.12,142.02,7.0411]
[1719598605632,15.2434,142.11,142.02,7.0411]
[1719598607860,15.4778,142.09,142.0,17.6046]
[1719598608037,15.4778,142.09,141.96,33.33]
[1719598608038,6.4043,142.07,141.97,17.6087]
[1719598608248,6.4043,142.07,141.96,20.0]
[1719598608249,15.4778,142.06,141.96,20.0]
[1719598608465,6.4043,142.04,141.94,17.6123]
[1719598608643,15.4778,142.02,141.94,17.6123]
[1719598609075,15.4778,142.02,141.92,7.046]
[1719598609242,20.0,142.01,141.92,7.046]
[1719598611137,6.4043,142.0,141.91,17.6164]
[1719598611354,6.4043,142.0,141.9,7.047]
[1719598611355,20.0,141.99,141.9,7.047]
[1719598611559,20.0,141.99,141.91,7.0462]
[1719598611759,20.0,141.99,141.9,17.6173]
[1719598611939,20.0,141.99,141.92,7.0458]
[1719598613059,20.0,141.99,141.94,7.0451]
[1719598613359,6.4043,142.0,141.95,7.0446]
[1719598613939,6.4043,142.0,141.94,7.0451]
[1719598614152,6.4043,142.0,141.93,7.0455]
[1719598616655,6.4043,142.0,141.92,17.615]
[1719598616857,20.0,141.99,141.92,24.6611]
[1719598618161,20.0,141.99,141.91,7.0465]
[1719598621140,20.0,141.99,141.86,0.843794]
[1719598621141,6.5713,141.97,141.86,0.843794]
[1719598621342,6.5713,141.97,141.86,7.892594]
[1719598621644,20.0,141.96,141.88,7.0481]
[1719598621847,20.0,141.96,141.9,7.047]
[1719598622176,20.0,141.96,141.89,17.6187]
[1719598622542,20.0,141.96,141.9,7.0469]
[1719598622738,6.5713,141.97,141.91,17.616]
[1719598623038,6.5713,141.97,141.91,24.6623]
[1719598623264,6.5713,141.97,141.89,7.0477]
[1719598623642,6.5713,141.97,141.87,7.0485]
[1719598623837,20.0,141.96,141.88,7.0482]
[1719598624253,20.0,141.96,141.89,7.0476]
[1719598624460,20.0,141.96,141.9,7.0472]
[1719598624840,20.0,141.96,141.91,7.0466]
[1719598625442,6.5713,141.97,141.91,7.0466]
[1719598626669,6.5713,141.97,141.89,17.619]
[1719598626853,6.5713,141.97,141.89,24.6666]
[1719598627166,27.7713,141.97,141.86,18.465694]
[1719598627370,56.5569,141.96,141.86,0.843794]
[1719598627879,41.2,141.96,141.86,0.843794]
[1719598628174,22.3825,141.95,141.86,0.843794]
[1719598628348,20.0,141.94,141.86,0.843794]
[1719598628699,15.1651,141.93,141.86,0.843794]
[1719598628874,26.4464,141.92,141.86,0.843794]
[1719598630171,47.6464,141.92,141.86,0.843794]
[1719598630675,36.3651,141.91,141.86,0.843794]
[1719598630879,20.0,141.9,141.86,0.843794]
[1719598634475,15.1651,141.91,141.86,0.843794]
[1719598635852,20.0,141.9,141.86,0.843794]
[1719598636763,41.2,141.9,141.86,0.843794]
[1719598641485,20.0,141.9,141.86,0.843794]
[1719598642587,41.2,141.9,141.86,0.843794]
[1719598643084,43.3308,141.89,141.76,24.6886]
[1719598643269,41.2,141.88,141.76,24.6886]
[1719598644181,41.2,141.88,141.74,7.055]
[1719598644357,21.2,141.86,141.74,7.055]
[1719598644559,20.0,141.85,141.74,7.0548]
[1719598644756,20.0,141.85,141.75,7.0546]
[1719598645586,20.0,141.86,141.76,7.0541]
[1719598645878,20.0,141.86,141.75,17.6365]
[1719598646066,20.0,141.86,141.78,7.0531]
[1719598646964,20.0,141.86,141.77,24.6873]
[1719598647788,20.0,141.86,141.78,0.85958906]
[1719598648086,20.0,141.86,141.77,24.6873]
[1719598649986,20.0,141.86,141.76,7.054]
[1719598651072,20.0,141.86,141.75,7.0546]
[1719598651383,21.2,141.84,141.72,13.41652687]
[1719598651563,26.6495,141.83,141.72,7.899794]
[1719598651760,47.8495,141.83,141.72,7.899794]
[1719598651965,47.8495,141.83,141.72,0.843794]
[1719598652485,37.1138,141.82,141.72,0.843794]
[1719598652891,20.0,141.81,141.72,0.843794]
[1719598653060,20.0,141.81,141.72,7.899894]
[1719598654791,20.0,141.81,141.74,7.0546]
[1719598654983,20.0,141.81,141.76,7.0541]
[1719598655487,15.9138,141.82,141.76,7.0541]
[1719598656074,15.9138,141.82,141.75,24.6909]
[1719598657798,15.9138,141.82,141.74,35.2741]
[1719598657975,21.7435,141.89,141.79,24.683]
[1719598658183,21.7435,141.89,141.79,17.6305]
[1719598658184,20.0,141.88,141.79,17.6305]
[1719598659302,36.3226,141.87,141.74,49.5292]
[1719598659469,26.4077,141.86,141.74,33.49]
[1719598659792,26.4077,141.86,141.74,40.5451]
[1719598659793,15.1226,141.85,141.74,40.5451]
[1719598660096,20.0,141.84,141.75,7.0545]
[1719598660280,20.0,141.84,141.76,7.0541]
[1719598661000,20.0,141.84,141.75,24.6909]
[1719598661296,20.0,141.84,141.74,33.49]
[1719598661468,20.0,141.84,141.74,40.5451]
[1719598661971,20.0,141.84,141.75,7.0546]
[1719598662902,20.0,141.84,141.76,1.36591977]
[1719598663105,41.2,141.84,141.72,0.843794]
[1719598663395,41.2,141.84,141.73,0.58726661]
[1719598663804,20.0,141.84,141.74,7.055]
[1719598664177,20.0,141.84,141.75,17.6364]
[1719598664371,20.0,141.84,141.76,7.0541]
[1719598664577,20.0,141.84,141.75,24.6909]
[1719598665698,20.0,141.84,141.73,33.49]
[1719598665911,41.2,141.84,141.73,33.49]
[1719598666077,41.2,141.84,141.74,7.0551]
[1719598667598,41.2,141.84,141.73,40.5454]
[1719598667983,21.8389,141.83,141.72,25.539194]
[1719598668171,20.0,141.82,141.72,18.483194]
[1719598668373,20.0,141.82,141.72,25.538994]
[1719598668604,20.0,141.82,141.73,7.0555]
[1719598668798,20.0,141.82,141.72,25.539294]
[1719598669494,20.0,141.82,141.73,7.0555]
[1719598669799,20.0,141.82,141.74,7.0549]
[1719598671495,20.0,141.82,141.73,7.0554]
[1719598672981,21.8389,141.83,141.74,17.6376]
[1719598673179,21.8389,141.83,141.75,7.0542]
[1719598673396,21.8389,141.83,141.72,0.843794]
[1719598673397,21.8389,141.83,141.72,7.899794]
[1719598673907,21.8389,141.83,141.72,0.843794]
[1719598674294,20.0,141.82,141.72,7.899894]
[1719598674610,20.0,141.82,141.72,0.843794]
[1719598674786,20.0,141.82,141.72,7.899494]
[1719598674983,20.0,141.82,141.72,0.843794]
[1719598675208,16.2049,141.81,141.72,0.843794]
[1719598675391,20.0,141.8,141.72,0.843794]
[1719598675878,20.0,141.8,141.72,7.899894]
[1719598676504,20.0,141.8,141.73,7.0556]
[1719598676897,20.0,141.8,141.72,7.899794]
[1719598677298,20.0,141.8,141.72,0.843794]
[1719598678016,41.2,141.8,141.72,0.843794]
[1719598678187,6.5233,141.79,141.72,0.843794]
[1719598678381,20.0,141.78,141.72,0.843794]
[1719598681314,16.6122,141.77,141.72,0.843794]
[1719598681496,20.0,141.76,141.72,0.843794]
[1719598682194,6.463,141.75,141.72,0.843794]
[1719598682396,16.6296,141.73,141.72,0.843794]
[1719598682616,36.6296,141.73,141.72,0.843794]
[1719598684927,15.6977,141.77,141.72,7.899894]
[1719598685585,15.6977,141.77,141.74,7.0549]
[1719598685787,15.6977,141.81,141.73,33.49]
[1719598685986,15.6977,141.81,141.76,7.054]
[1719598686198,15.6977,141.81,141.78,7.0531]
[1719598686410,15.3286,141.85,141.78,7.0531]
[1719598686614,15.3286,141.85,141.77,24.687]
[1719598686819,15.3286,141.85,141.77,17.6335]
[1719598687189,15.3286,141.85,141.77,24.6871]
[1719598687414,20.0,141.84,141.77,24.6871]
[1719598688621,20.0,141.84,141.77,17.6335]
[1719598689000,20.0,141.84,141.74,17.637]
[1719598689302,20.0,141.84,141.74,24.6917]
[1719598689818,20.0,141.84,141.73,33.49]
[1719598690111,6.2076,141.83,141.72,0.843794]
[1719598690317,20.0,141.82,141.72,7.899894]
[1719598690719,20.0,141.82,141.75,7.0542]
[1719598691019,20.0,141.82,141.76,7.0541]
[1719598691194,20.0,141.82,141.77,7.0535]
[1719598691716,6.2076,141.83,141.77,7.0535]
[1719598692211,6.2076,141.83,141.76,33.49]
[1719598692625,6.2076,141.83,141.77,7.0533]
[1719598693425,6.2076,141.83,141.76,40.544]
[1719598693605,6.2076,141.83,141.76,7.054]
[1719598697226,6.2076,141.83,141.77,7.0536]
[1719598698324,6.2076,141.83,141.76,7.0539]
[1719598699000,6.2076,141.83,141.77,7.0535]
[1719598699625,15.3286,141.85,141.79,7.0526]
[1719598700124,15.3286,141.85,141.8,8.4620844]
[1719598700625,15.3286,141.85,141.82,7.0511]
[1719598700803,16.3931,141.89,141.83,1.40984975]
[1719598701004,16.3931,141.89,141.84,7.0498]
[1719598701217,16.3931,141.89,141.85,1.40956039]
[1719598701410,16.3931,141.89,141.86,1.40946102]
[1719598701600,22.0878,141.97,141.86,1.40946102]
[1719598702700,22.0878,141.97,141.85,24.673]
[1719598703034,37.2429,141.94,141.82,7.0507]
[1719598703207,41.2,141.93,141.82,33.49]
[1719598703751,20.0,141.93,141.82,33.49]
[1719598705836,41.2,141.93,141.82,33.49]
[1719598706133,42.4642,141.92,141.79,33.49]
[1719598706330,20.0,141.91,141.79,33.49]
[1719598706807,20.0,141.91,141.81,7.0516]
[1719598707415,20.0,141.91,141.8,7.052]
[1719598708024,20.0,141.91,141.82,33.49]
[1719598708337,20.0,141.91,141.83,24.6766]
[1719598708510,20.0,141.91,141.84,0.6726599]
[1719598710235,20.0,141.91,141.83,24.6766]
[1719598711751,20.0,141.91,141.83,17.6263]
[1719598711911,20.0,141.91,141.85,7.0496]
[1719598712111,20.0,141.91,141.84,7.05]
[1719598713012,20.0,141.91,141.83,24.6768]
[1719598713221,20.0,141.91,141.83,17.6263]
[1719598713424,20.0,141.91,141.8,17.6296]
[1719598713628,20.0,141.91,141.83,7.0504]
[1719598714336,20.0,141.91,141.84,7.0501]
[1719598715145,20.0,141.91,141.83,40.5405]
[1719598716624,20.0,141.91,141.84,17.6252]
[1719598717212,20.0,141.91,141.85,7.0496]
[1719598717742,20.0,141.91,141.84,24.6752]
[1719598717948,20.0,141.91,141.8,24.6812]
[1719598718240,20.0,141.91,141.81,40.5412]
[1719598718648,20.0,141.91,141.8,17.6292]
[1719598718816,16.5296,141.9,141.78,5.55809876]
[1719598719024,20.0,141.89,141.78,33.49]
[1719598719344,20.0,141.89,141.79,7.0523]
[1719598719524,20.0,141.89,141.8,7.052]
[1719598720233,20.0,141.89,141.79,17.6311]
[1719598720437,20.0,141.89,141.78,40.5431]
[1719598720637,20.0,141.89,141.77,21.81933932]
[1719598720849,20.0,141.89,141.77,28.87263932]
[1719598721345,20.0,141.89,141.78,7.0531]
[1719598721723,20.0,141.89,141.78,51.1222]
[1719598721919,20.0,141.89,141.81,7.0516]
[1719598722243,20.0,141.89,141.8,17.6302]
[1719598722432,20.0,141.89,141.79,7.0525]
[1719598723134,20.0,141.89,141.79,6.6465]
[1719598723817,20.0,141.89,141.78,33.49]
[1719598724022,20.0,141.89,141.77,46.50563932]
[1719598724519,41.2,141.89,141.77,33.7959]
[1719598726022,41.2,141.89,141.77,17.6331]
[1719598726348,41.2,141.89,141.75,33.49]
[1719598726349,41.2,141.89,141.75,39.10818373]
[1719598726743,41.2,141.89,141.75,5.61818373]
[1719598726920,41.2,141.89,141.74,17.6371]
[1719598727765,41.2,141.89,141.76,7.054]
[1719598727924,41.2,141.89,141.75,7.0545]
[1719598728422,41.2,141.89,141.74,17.6371]
[1719598729449,41.2,141.89,141.75,7.0543]
[1719598731255,41.2,141.89,141.76,7.0541]
[1719598731427,21.2,141.89,141.77,7.0536]
[1719598732526,21.2,141.89,141.76,58.1791]
[1719598732742,21.2,141.89,141.76,51.1251]
[1719598733050,33.49,141.9,141.78,17.6325]
[1719598733248,22.42710894,141.92,141.8,7.0521]
[1719598734348,1.22710894,141.92,141.8,7.0521]
[1719598734546,42.42710894,141.92,141.8,7.0521]
[1719598735052,42.42710894,141.92,141.79,40.5424]
[1719598735236,27.3959,141.91,141.79,47.0995]
[1719598735438,20.0,141.9,141.79,47.0995]
[1719598740764,20.0,141.9,141.8,7.0521]
[1719598742750,41.2,141.9,141.79,40.0471]
[1719598743060,16.4977,141.89,141.79,6.5571]
[1719598743235,20.0,141.88,141.79,6.5571]
[1719598743734,20.0,141.88,141.78,17.6325]
[1719598744133,20.0,141.88,141.76,16.3244]
[1719598744336,22.857,141.87,141.76,23.3784]
[1719598744558,20.0,141.86,141.77,7.0534]
[1719598744936,20.0,141.86,141.78,7.053]
[1719598747460,20.0,141.86,141.79,17.6311]
[1719598747758,20.0,141.86,141.81,7.0516]
[1719598748343,20.0,141.86,141.8,7.0519]
[1719598750264,20.0,141.86,141.79,24.6835]
[1719598750566,20.0,141.86,141.79,17.6311]
[1719598751240,20.0,141.86,141.77,40.5435]
[1719598751436,20.0,141.86,141.76,33.9593]
[1719598751641,15.0609,141.85,141.74,40.545]
[1719598751859,20.0,141.84,141.74,40.545]
[1719598752052,20.0,141.84,141.75,7.0546]
[1719598752339,21.3801,141.83,141.72,0.843794]
[1719598752539,20.0,141.82,141.72,7.899594]
[1719598752743,20.0,141.82,141.73,7.0556]
[1719598755043,15.2062,141.81,141.72,25.539994]
[1719598755241,15.2062,141.79,141.72,0.843794]
[1719598755458,20.0,141.78,141.72,0.843794]
[1719598755851,21.9425,141.77,141.72,0.843794]
[1719598756071,20.0,141.76,141.72,0.843794]
[1719598757948,22.189,141.81,141.72,0.843794]
[1719598758143,22.189,141.81,141.74,7.0551]
[1719598758349,22.189,141.81,141.73,24.6943]
[1719598759383,20.0,141.8,141.73,24.6943]
[1719598763452,20.0,141.8,141.74,7.055]
[1719598763654,20.0,141.8,141.75,7.0546]
[1719598763976,16.1499,141.81,141.75,7.0546]
[1719598764776,6.0632,141.84,141.76,34.89926717]
[1719598764964,6.0632,141.84,141.78,7.0528]
[1719598765161,6.0632,141.84,141.77,24.6868]
[1719598765758,6.0632,141.84,141.74,17.6369]
[1719598765952,6.0632,141.84,141.74,51.1269]
[1719598766179,20.0,141.83,141.76,17.635]
[1719598766480,6.0632,141.84,141.78,7.0528]
[1719598767582,16.4451,141.85,141.79,7.0525]
[1719598767893,22.4565,141.89,141.79,7.0525]
[1719598768079,22.4565,141.89,141.79,7.0526]
[1719598768582,22.4565,141.89,141.75,58.18]
[1719598768757,22.4565,141.89,141.76,7.0539]
[1719598768958,20.0,141.88,141.76,7.0539]
[1719598769176,20.0,141.88,141.75,51.1258]
[1719598769177,15.5742,141.87,141.75,17.6358]
[1719598769480,20.0,141.86,141.74,40.5448]
[1719598770158,20.0,141.86,141.75,7.0546]
[1719598772061,20.0,141.86,141.77,33.49]
[1719598772267,20.0,141.86,141.77,40.5433]
[1719598772663,20.0,141.86,141.76,24.6891]
[1719598772873,20.0,141.86,141.77,33.49]
[1719598773072,20.0,141.86,141.77,40.5436]
[1719598775697,20.0,141.86,141.78,7.0531]
[1719598776076,20.0,141.86,141.77,40.5435]
[1719598776284,20.0,141.86,141.77,33.49]
[1719598777690,20.0,141.86,141.77,40.5436]
[1719598778591,15.5742,141.87,141.78,17.6325]
[1719598779096,15.5742,141.87,141.8,7.0521]
[1719598779274,15.5742,141.87,141.8,40.5421]
[1719598786506,15.5742,141.87,141.8,33.49]
[1719598788373,6.4649,141.86,141.76,7.057]
[1719598788576,15.3835,141.85,141.75,5.70853057]
[1719598788901,20.0,141.84,141.74,40.545]
[1719598789199,20.0,141.84,141.75,7.0545]
[1719598790089,20.0,141.84,141.74,58.1827]
[1719598791211,21.8484,141.83,141.73,5.49512308]
[1719598791387,20.0,141.82,141.72,41.390794]
[1719598791585,20.0,141.82,141.72,0.843794]
[1719598792202,20.0,141.82,141.72,7.899894]
[1719598792498,20.0,141.82,141.72,13.39639457]
[1719598793702,20.0,141.82,141.72,6.34029457]
[1719598793878,20.0,141.82,141.73,17.6387]
[1719598794085,20.0,141.82,141.74,7.0548]
[1719598794388,20.0,141.82,141.73,24.6941]
[1719598794598,20.0,141.82,141.74,7.055]
[1719598794904,20.0,141.82,141.75,7.0543]
[1719598795482,20.0,141.82,141.74,40.5449]
[1719598796507,20.0,141.82,141.72,6.34029457]
[1719598796704,20.0,141.82,141.72,13.39639457]
[1719598798083,20.0,141.82,141.73,7.0556]
[1719598798679,20.0,141.82,141.74,7.0551]
[1719598798886,20.0,141.82,141.72,23.98049457]
[1719598799092,20.0,141.82,141.73,7.0553]
[1719598799692,20.0,141.82,141.72,31.03649457]
[1719598800006,16.1911,141.81,141.72,23.98049457]
[1719598800312,6.4188,141.79,141.72,0.843794]
[1719598800480,36.1911,141.78,141.72,0.843794]
[1719598801803,27.7761,141.77,141.72,0.843794]
[1719598801984,15.2023,141.75,141.72,0.843794]
[1719598802188,20.0,141.74,141.72,0.843794]
[1719598802790,20.0,141.74,141.65,33.49]
[1719598802791,6.3484,141.73,141.65,33.49]
[1719598803007,20.0,141.72,141.65,33.49]
[1719598803180,20.0,141.72,141.65,40.5496]
[1719598803386,20.0,141.72,141.65,7.0596]
[1719598804093,20.0,141.72,141.67,7.0585]
[1719598804290,20.0,141.72,141.66,7.0589]
[1719598804784,20.0,141.72,141.67,7.0586]
[1719598805184,20.0,141.72,141.65,17.6482]
[1719598805185,20.0,141.72,141.66,7.0589]
[1719598805893,20.0,141.72,141.63,5.69696024]
[1719598806109,15.466,141.71,141.62,51.1422]
[1719598806418,15.466,141.71,141.63,7.0605]
[1719598806619,15.466,141.71,141.62,56.75501265]
[1719598806919,15.466,141.71,141.64,7.0601]
[1719598807118,15.466,141.71,141.62,56.75501265]
[1719598807119,15.466,141.71,141.62,5.61281265]
[1719598807411,20.0,141.7,141.6,33.49]
[1719598807786,15.2908,141.68,141.58,20.843794]
[1719598807989,20.0,141.67,141.58,20.843794]
[1719598808522,6.4428,141.66,141.58,0.843794]
[1719598808718,20.0,141.65,141.58,0.843794]
[1719598809093,15.1552,141.64,141.58,0.843794]
[1719598809421,20.0,141.63,141.58,0.843794]
[1719598809922,41.22,141.63,141.58,0.843794]
[1719598810128,6.103,141.62,141.58,0.843794]
[1719598810308,20.0,141.61,141.58,0.843794]
[1719598810896,6.103,141.62,141.58,7.906494]
[1719598811121,15.1552,141.64,141.6,7.0617]
[1719598811818,15.1552,141.64,141.59,7.0626]
[1719598812806,6.3307,141.66,141.6,7.0619]
[1719598813034,6.3307,141.66,141.6,17.6547]
[1719598813237,15.3614,141.68,141.6,17.6547]
[1719598813742,15.3614,141.68,141.63,7.0605]
[1719598814436,15.3614,141.68,141.62,7.0609]
[1719598814951,15.3614,141.68,141.6,24.7165]
[1719598815134,20.0,141.67,141.58,0.843794]
[1719598815613,20.0,141.67,141.58,6.53987187]
[1719598816232,20.0,141.67,141.58,13.60257187]
[1719598816543,20.0,141.67,141.59,7.0625]
[1719598816708,20.0,141.67,141.58,106.53987187]
[1719598817034,21.5504,141.72,141.66,7.0588]
[1719598817247,21.5504,141.72,141.65,17.6484]
[1719598817448,21.5504,141.72,141.65,24.708]
[1719598817738,21.5504,141.72,141.66,7.0589]
[1719598817915,21.5504,141.72,141.66,7.60898806]
[1719598818238,21.1989,141.76,141.67,7.0585]
[1719598818439,21.1989,141.76,141.68,0.5500104]
[1719598818739,6.1742,141.8,141.72,7.0558]
[1719598818914,6.1742,141.8,141.71,17.6413]
[1719598818915,6.1742,141.8,141.73,7.6053132]
[1719598819258,6.1742,141.8,141.72,7.056]
[1719598821444,6.1742,141.8,141.71,17.6413]
[1719598821651,6.1742,141.8,141.72,7.0561]
[1719598822326,6.1742,141.8,141.71,24.6978]
[1719598822526,20.0,141.79,141.69,7.0573]
[1719598822729,20.0,141.79,141.68,24.7028]
[1719598823022,41.22,141.79,141.66,15.0247]
[1719598823253,41.22,141.79,141.65,17.6487]
[1719598823423,41.22,141.79,141.66,7.0587]
[1719598823740,27.7494,141.77,141.65,17.6487]
[1719598823943,20.0,141.76,141.65,7.0594]
[1719598824118,20.0,141.76,141.62,100.0]
[1719598824323,20.0,141.76,141.67,7.0585]
[1719598824759,20.0,141.76,141.66,24.7065]
[1719598825044,20.0,141.76,141.63,17.6514]
[1719598825550,41.22,141.76,141.63,17.6514]
[1719598825749,41.22,141.76,141.64,7.0598]
[1719598825923,41.22,141.76,141.65,17.6486]
[1719598825924,20.0,141.76,141.65,17.6486]
[1719598826119,41.22,141.76,141.65,17.6486]
[1719598827254,41.22,141.76,141.64,7.0598]
[1719598827954,41.22,141.76,141.63,7.0603]
[1719598828155,36.5459,141.75,141.62,17.6521]
[1719598828360,6.4321,141.73,141.63,7.0604]
[1719598828535,20.0,141.72,141.63,7.0604]
[1719598828851,20.0,141.72,141.64,17.6499]
[1719598829052,20.0,141.72,141.65,7.0596]
[1719598829251,20.0,141.72,141.64,24.7098]
[1719598830232,20.0,141.72,141.65,7.0596]
[1719598830932,20.0,141.72,141.64,17.6499]
[1719598831551,20.0,141.72,141.64,24.7098]
[1719598831740,20.0,141.72,141.64,17.6499]
[1719598832850,20.0,141.72,141.64,24.7096]
[1719598833443,20.0,141.72,141.61,17.6534]
[1719598833635,20.0,141.72,141.61,24.7147]
[1719598834155,20.0,141.72,141.62,7.0611]
[1719598834338,20.0,141.72,141.61,24.7148]
[1719598834547,20.0,141.72,141.61,17.6534]
[1719598834744,20.0,141.72,141.61,24.715]
[1719598834745,16.6362,141.71,141.61,24.715]
[1719598834946,20.0,141.7,141.61,24.715]